bitfinex-derivatives/quotes_BTCF0:USTF0_20260106
["timestamp","ask_amount","ask_price","bid_price","bid_amount"]
[1767719047956,0.010786,92744.0,92570.0,0.054032]
[1767719047957,0.01278825,92746.0,92724.0,0.03344073]
[1767719048167,0.09176,92755.0,92745.0,0.010786]
[1767719048460,0.09176,92755.0,92742.0,0.010786]
[1767719048667,0.09176,92755.0,92739.0,0.010786]
[1767719048866,0.09176,92755.0,92735.0,0.09026768]
[1767719049062,0.0984981,92753.0,92730.0,0.010787]
[1767719049250,0.09176,92755.0,92732.0,0.010787]
[1767719049251,0.010785,92752.0,92732.0,0.010787]
[1767719049452,0.102544,92755.0,92732.0,0.010787]
[1767719050266,0.102544,92755.0,92731.0,0.010787]
[1767719050667,0.010785,92753.0,92731.0,0.010787]
[1767719051359,0.09818405,92753.0,92723.0,0.09026768]
[1767719051666,0.09818405,92745.0,92723.0,0.09176]
[1767719052371,0.09818405,92745.0,92725.0,0.010788]
[1767719052661,0.09818405,92753.0,92730.0,0.09026768]
[1767719052868,0.09176,92754.0,92733.0,0.09026768]
[1767719053265,0.09176,92754.0,92739.0,0.010786]
[1767719053462,0.09176,92754.0,92742.0,0.010786]
[1767719053971,0.09176,92754.0,92727.0,0.010788]
[1767719053972,0.00215614,92759.0,92716.0,0.03344073]
[1767719054161,0.09818405,92748.0,92724.0,0.09026768]
[1767719054356,0.00215614,92759.0,92736.0,0.09026768]
[1767719054562,0.09176,92758.0,92736.0,0.09026768]
[1767719056172,0.00215614,92759.0,92736.0,0.09026768]
[1767719056173,0.00215614,92759.0,92741.0,0.010786]
[1767719056470,0.010783,92768.0,92748.0,0.010785]
[1767719056766,0.010783,92768.0,92741.0,0.09026768]
[1767719056767,0.09176,92767.0,92741.0,0.09026768]
[1767719056956,0.0949954,92776.0,92750.0,0.12716377]
[1767719057161,0.09176,92775.0,92760.0,0.12716377]
[1767719057365,0.09176,92775.0,92748.0,0.09026768]
[1767719057366,0.09176,92774.0,92756.0,0.010784]
[1767719057666,0.09176,92773.0,92756.0,0.010784]
[1767719057875,0.010783,92770.0,92744.0,0.09026768]
[1767719058066,0.18994405,92773.0,92749.0,0.10105268]
[1767719058566,0.09818405,92781.0,92755.0,0.09026768]
[1767719058868,0.01309238,92786.0,92763.0,0.010783]
[1767719059062,0.09176,92785.0,92770.0,0.010783]
[1767719059260,0.09818405,92788.0,92770.0,0.010783]
[1767719059476,0.09176,92787.0,92770.0,0.010783]
[1767719059666,0.09176,92787.0,92767.0,0.09026768]
[1767719059871,0.00215544,92789.0,92768.0,0.010783]
[1767719060059,0.09391544,92789.0,92768.0,0.09705068]
[1767719060464,0.09391544,92789.0,92764.0,0.09176]
[1767719060465,0.09391544,92789.0,92770.0,0.10105068]
[1767719061172,0.00215544,92789.0,92776.0,0.010782]
[1767719061372,0.00215544,92789.0,92773.0,0.09026768]
[1767719061569,0.00215544,92789.0,92773.0,0.10104968]
[1767719061766,0.00215544,92789.0,92773.0,0.09026768]
[1767719061967,0.00215544,92789.0,92764.0,0.09176]
[1767719061968,0.01293644,92789.0,92766.0,0.10105068]
[1767719062167,0.00215544,92789.0,92774.0,0.010782]
[1767719062765,0.00215544,92789.0,92770.0,0.10105068]
[1767719063172,0.00215544,92789.0,92772.0,0.010782]
[1767719064064,0.00215544,92789.0,92770.0,0.09026768]
[1767719064263,0.00496021,92789.0,92764.0,0.18202768]
[1767719064471,0.00215544,92789.0,92769.0,0.010783]
[1767719064874,0.00215544,92789.0,92768.0,0.09026768]
[1767719065074,0.00215544,92789.0,92774.0,0.010782]
[1767719066477,0.00215544,92789.0,92774.0,0.10104968]
[1767719067881,0.00215544,92789.0,92774.0,0.09026768]
[1767719068079,0.00215544,92789.0,92761.0,0.010784]
[1767719068080,0.010778,92806.0,92783.0,0.09026768]
[1767719068274,0.010778,92807.0,92788.0,0.09026768]
[1767719068472,0.01309952,92808.0,92788.0,0.09026768]
[1767719068673,0.010778,92808.0,92788.0,0.09026768]
[1767719069373,0.02167052,92815.0,92788.0,0.12370841]
[1767719069571,0.010778,92812.0,92791.0,0.10104768]
[1767719069776,0.03452563,92815.0,92793.0,0.01078]
[1767719069974,0.02167052,92815.0,92795.0,0.09026768]
[1767719070272,0.02167052,92815.0,92803.0,0.010779]
[1767719070776,0.010776,92828.0,92806.0,0.010778]
[1767719070975,0.010776,92828.0,92807.0,0.09172]
[1767719071168,0.10895905,92832.0,92807.0,0.18773077]
[1767719071374,0.010775,92836.0,92810.0,0.22317454]
[1767719071571,0.09842814,92847.0,92818.0,0.09601077]
[1767719071883,0.3187,92858.0,92817.0,0.03483101]
[1767719071884,0.09842814,92838.0,92819.0,0.09172]
[1767719072078,0.010775,92837.0,92819.0,0.09172]
[1767719072279,0.07103959,92858.0,92820.0,0.09172]
[1767719072280,0.010774,92842.0,92820.0,0.09172]
[1767719072482,0.010774,92842.0,92820.0,0.18773077]
[1767719072876,0.010775,92839.0,92820.0,0.18773077]
[1767719073081,0.02384622,92839.0,92820.0,0.18773077]
[1767719073275,0.02384622,92839.0,92810.0,0.12716377]
[1767719073276,0.010776,92830.0,92821.0,0.89928]
[1767719073486,0.010775,92837.0,92822.0,0.09172]
[1767719073681,0.010775,92837.0,92823.0,0.09172]
[1767719074281,0.01283072,92839.0,92823.0,0.09172]
[1767719074485,0.010773,92850.0,92824.0,0.09601077]
[1767719074783,0.010773,92850.0,92825.0,0.09168]
[1767719074784,0.010775,92837.0,92825.0,0.09168]
[1767719075088,0.010775,92837.0,92826.0,0.09168]
[1767719075885,0.010774,92841.0,92827.0,0.09168]
[1767719076676,0.010774,92841.0,92819.0,0.010777]
[1767719076880,0.09842814,92847.0,92820.0,0.09168]
[1767719077081,0.010775,92840.0,92820.0,0.09168]
[1767719077483,0.010774,92846.0,92823.0,0.010776]
[1767719077685,0.01424322,92849.0,92825.0,0.09601077]
[1767719077686,0.010775,92840.0,92825.0,0.09601077]
[1767719077890,0.09842814,92847.0,92826.0,0.09168]
[1767719078188,0.09842814,92841.0,92827.0,0.09168]
[1767719078379,0.010775,92838.0,92827.0,0.09168]
[1767719078573,0.010775,92839.0,92827.0,0.09168]
[1767719078883,0.01424322,92849.0,92831.0,0.09601077]
[1767719079079,0.010774,92848.0,92831.0,0.09601077]
[1767719079287,0.01424322,92849.0,92831.0,0.09601077]
[1767719079288,0.010774,92846.0,92831.0,0.09601077]
[1767719079484,0.00215405,92849.0,92834.0,0.13084178]
[1767719079684,0.00215405,92849.0,92830.0,0.12716377]
[1767719079685,0.01236038,92859.0,92844.0,0.09601077]
[1767719079887,0.01236038,92859.0,92828.0,0.69496]
[1767719079888,0.09842814,92861.0,92845.0,0.09168]
[1767719080186,0.09842814,92861.0,92837.0,0.09601077]
[1767719080187,0.01257599,92861.0,92844.0,0.09601077]
[1767719080487,0.00776428,92863.0,92837.0,0.18769077]
[1767719080688,0.00776428,92861.0,92837.0,0.09601077]
[1767719080886,0.010774,92846.0,92830.0,0.09601077]
[1767719081191,0.010773,92849.0,92830.0,0.09601077]
[1767719081382,0.05634048,92855.0,92830.0,0.09601077]
[1767719081584,0.05634048,92855.0,92822.0,0.03483101]
[1767719081585,0.06711348,92853.0,92822.0,0.09601077]
[1767719081888,0.010774,92843.0,92822.0,0.09601077]
[1767719082384,0.010774,92842.0,92824.0,0.09601077]
[1767719082781,0.010774,92849.0,92825.0,0.03483101]
[1767719082984,0.010774,92849.0,92830.0,0.13084178]
[1767719083287,0.09168,92854.0,92831.0,0.09601077]
[1767719083483,0.010774,92842.0,92820.0,0.102457]
[1767719083684,0.09842814,92850.0,92822.0,0.010777]
[1767719083880,0.010775,92837.0,92812.0,0.010778]
[1767719084084,0.03454363,92843.0,92799.0,0.010779]
[1767719084085,0.13297177,92841.0,92813.0,0.09168]
[1767719084290,0.13297177,92841.0,92811.0,0.010778]
[1767719084479,0.010776,92828.0,92812.0,0.09168]
[1767719084685,0.010775,92834.0,92813.0,0.09168]
[1767719085189,0.010775,92834.0,92813.0,0.12651101]
[1767719085393,0.010775,92834.0,92814.0,0.13084178]
[1767719086094,0.010775,92832.0,92814.0,0.13084178]
[1767719086394,0.010775,92832.0,92806.0,0.09601077]
[1767719086395,0.09842814,92831.0,92806.0,0.09601077]
[1767719086582,0.010776,92823.0,92806.0,0.09601077]
[1767719086789,0.010777,92820.0,92798.0,0.09601077]
[1767719087094,0.09168,92820.0,92800.0,0.010779]
[1767719087294,0.09168,92820.0,92799.0,0.09601077]
[1767719087681,0.09168,92820.0,92801.0,0.09601077]
[1767719087883,0.09168,92820.0,92807.0,0.010778]
[1767719088288,0.09168,92820.0,92805.0,0.010779]
[1767719088489,0.09168,92820.0,92806.0,0.09601077]
[1767719088690,0.09168,92820.0,92807.0,0.010778]
[1767719088890,0.09168,92820.0,92806.0,0.09601077]
[1767719089883,0.010775,92833.0,92812.0,0.09601077]
[1767719090199,0.09168,92832.0,92808.0,0.09601077]
[1767719090389,0.09842814,92830.0,92808.0,0.09601077]
[1767719090596,0.09168,92832.0,92801.0,0.09601077]
[1767719090597,0.010777,92820.0,92801.0,0.09601077]
[1767719090788,0.09168,92819.0,92801.0,0.09601077]
[1767719091188,0.102457,92819.0,92801.0,0.09601077]
[1767719091402,0.09842814,92818.0,92796.0,0.09168]
[1767719091698,0.09842814,92818.0,92796.0,0.10246]
[1767719091699,0.010777,92817.0,92796.0,0.10246]
[1767719091997,0.09168,92819.0,92798.0,0.010779]
[1767719092790,0.010777,92818.0,92796.0,0.01078]
[1767719092994,0.010777,92818.0,92795.0,0.03483101]
[1767719092995,0.010777,92817.0,92795.0,0.03483101]
[1767719093490,0.010777,92817.0,92795.0,0.13084178]
[1767719094398,0.010777,92815.0,92795.0,0.13084178]
[1767719095003,0.010776,92826.0,92787.0,0.09168]
[1767719095004,0.09842814,92832.0,92807.0,0.13084178]
[1767719095189,0.010777,92823.0,92807.0,0.13084178]
[1767719095385,0.010777,92818.0,92801.0,0.03483101]
[1767719095590,0.09168,92817.0,92801.0,0.03483101]
[1767719095886,0.09168,92817.0,92789.0,0.00215544]
[1767719095887,0.09842814,92812.0,92789.0,0.00215544]
[1767719096086,0.09168,92811.0,92789.0,0.00215544]
[1767719096283,0.010778,92810.0,92789.0,0.00215544]
[1767719096690,0.010778,92808.0,92789.0,0.13299722]
[1767719097701,0.010778,92806.0,92789.0,0.13299722]
[1767719097902,0.010778,92806.0,92789.0,0.09816621]
[1767719097903,0.02298919,92806.0,92789.0,0.09816621]
[1767719098200,0.09168,92811.0,92789.0,0.09816621]
[1767719098393,0.010777,92816.0,92800.0,0.13123255]
[1767719098593,0.010778,92814.0,92800.0,0.13123255]
[1767719098898,0.010778,92814.0,92800.0,0.09440661]
[1767719099201,0.09168,92813.0,92800.0,0.08740661]
[1767719099498,0.09168,92812.0,92801.0,0.03682594]
[1767719099808,0.09168,92814.0,92807.0,0.010778]
[1767719100102,0.09168,92820.0,92810.0,0.03682594]
[1767719100396,0.09181688,92835.0,92810.0,0.03682594]
[1767719100397,0.010776,92826.0,92810.0,0.03682594]
[1767719100599,0.01241295,92828.0,92791.0,0.09168]
[1767719100600,0.102456,92825.0,92804.0,0.03682594]
[1767719100900,0.010777,92822.0,92804.0,0.03682594]
[1767719101103,0.18349688,92825.0,92801.0,0.09440661]
[1767719101314,0.18349688,92825.0,92791.0,0.09168]
[1767719101315,0.010778,92811.0,92792.0,0.03840815]
[1767719101606,0.10896312,92813.0,92793.0,0.01078]
[1767719101899,0.010778,92813.0,92793.0,0.01078]
[1767719102096,0.010778,92811.0,92791.0,0.13573636]
[1767719102492,0.010778,92811.0,92789.0,0.00215544]
[1767719102493,0.010778,92807.0,92789.0,0.00215544]
[1767719103498,0.010778,92809.0,92789.0,0.00215544]
[1767719104000,0.04004592,92806.0,92782.0,0.00013736]
[1767719104198,0.010778,92807.0,92771.0,0.04919015]
[1767719104199,0.01078,92792.0,92771.0,0.04919015]
[1767719104389,0.09168,92791.0,92771.0,0.03840815]
[1767719104591,0.09818512,92790.0,92771.0,0.010782]
[1767719104904,0.09818512,92790.0,92765.0,0.03840815]
[1767719104905,0.09818512,92790.0,92768.0,0.010783]
[1767719105203,8.565e-05,92789.0,92775.0,0.010782]
[1767719105398,0.09168,92788.0,92772.0,0.010782]
[1767719105600,0.09168,92787.0,92774.0,0.010782]
[1767719105900,0.09818512,92806.0,92785.0,0.010781]
[1767719106098,0.09168,92805.0,92785.0,0.010781]
[1767719106299,0.09168,92805.0,92787.0,0.010781]
[1767719106498,0.09168,92805.0,92772.0,0.010782]
[1767719106499,0.09168,92804.0,92792.0,0.01078]
[1767719106698,0.09168,92803.0,92784.0,0.09732821]
[1767719106898,0.09818512,92800.0,92782.0,0.010781]
[1767719107100,0.09818512,92800.0,92776.0,0.03840815]
[1767719107298,0.13823104,92807.0,92785.0,0.010781]
[1767719107596,0.09168,92806.0,92781.0,0.03118915]
[1767719107797,0.20064312,92806.0,92785.0,0.010781]
[1767719108000,0.09818512,92805.0,92785.0,0.010781]
[1767719110297,0.09168,92804.0,92788.0,0.01078]
[1767719110499,0.010778,92809.0,92790.0,0.01078]
[1767719110803,0.09168,92803.0,92787.0,0.010781]
[1767719111002,0.09168,92803.0,92778.0,0.010782]
[1767719111003,0.09168,92803.0,92784.0,0.010781]
[1767719111204,0.010779,92803.0,92784.0,0.010781]
[1767719111502,0.09168,92802.0,92784.0,0.010781]
[1767719111895,0.09818512,92800.0,92780.0,0.010781]
[1767719112202,0.09818512,92799.0,92780.0,0.010781]
[1767719112700,0.01078,92795.0,92775.0,0.010782]
[1767719112907,0.09818512,92798.0,92779.0,0.010782]
[1767719114309,0.09818512,92788.0,92770.0,0.010783]
[1767719114494,0.09168,92787.0,92774.0,0.010782]
[1767719114804,0.09168,92786.0,92771.0,0.010782]
[1767719115001,0.09818512,92784.0,92770.0,0.010783]
[1767719115199,0.09818512,92784.0,92763.0,0.03840815]
[1767719115403,0.09818512,92784.0,92763.0,0.010783]
[1767719115594,0.09818512,92784.0,92765.0,0.010783]
[1767719116108,0.102461,92783.0,92765.0,0.010783]
[1767719116313,0.102461,92783.0,92764.0,0.010783]
[1767719116612,0.09168,92783.0,92766.0,0.010783]
[1767719116800,0.09168,92783.0,92769.0,0.010783]
[1767719117502,0.09168,92783.0,92771.0,0.010782]
[1767719118197,0.09818512,92782.0,92759.0,0.00215614]
[1767719118402,0.010782,92777.0,92761.0,0.010784]
[1767719118897,0.010782,92777.0,92759.0,0.00215614]
[1767719119205,0.010782,92777.0,92760.0,0.010784]
[1767719119417,0.09818512,92765.0,92759.0,0.00215614]
[1767719119601,0.09818512,92765.0,92748.0,0.010785]
[1767719120001,0.09818512,92765.0,92750.0,0.010785]
[1767719120208,0.09818512,92765.0,92747.0,0.010785]
[1767719120710,0.09818512,92765.0,92749.0,0.010785]
[1767719120904,0.09818512,92765.0,92743.0,0.010786]
[1767719121209,0.09818512,92765.0,92742.0,0.03840815]
[1767719121399,0.010784,92755.0,92737.0,0.010786]
[1767719121597,0.010784,92758.0,92739.0,0.010786]
[1767719121802,0.09818512,92759.0,92743.0,0.010786]
[1767719122208,0.09818512,92759.0,92745.0,0.010785]
[1767719122513,0.09818512,92766.0,92739.0,0.03840815]
[1767719122709,0.09818512,92764.0,92739.0,0.03840815]
[1767719122909,0.010784,92761.0,92744.0,0.010786]
[1767719123103,0.10896812,92764.0,92744.0,0.010786]
[1767719123505,0.09818512,92764.0,92739.0,0.03840815]
[1767719123707,0.09818512,92764.0,92746.0,0.010785]
[1767719124401,0.09818512,92764.0,92739.0,0.03840815]
[1767719124402,0.09818512,92764.0,92748.0,0.010785]
[1767719124903,0.10896812,92763.0,92739.0,0.03840815]
[1767719125104,0.09168,92767.0,92733.0,0.010787]
[1767719125105,0.010784,92754.0,92733.0,0.010787]
[1767719125321,0.09818512,92749.0,92733.0,0.010787]
[1767719125506,0.09168,92748.0,92733.0,0.010787]
[1767719126011,0.09168,92748.0,92730.0,0.010787]
[1767719126213,0.09168,92748.0,92723.0,0.03840815]
[1767719126214,0.09818512,92747.0,92729.0,0.01294383]
[1767719127216,0.09818512,92747.0,92731.0,0.010787]
[1767719128209,0.09818512,92747.0,92729.0,0.00215683]
[1767719128711,0.09172,92746.0,92732.0,0.010787]
[1767719128917,0.09172,92746.0,92729.0,0.00215683]
[1767719129114,0.09818512,92744.0,92729.0,0.00215683]
[1767719129313,0.09172,92746.0,92720.0,0.09168]
[1767719129314,0.09818512,92737.0,92720.0,0.09168]
[1767719129520,0.09172,92736.0,92725.0,0.010788]
[1767719129720,0.09172,92736.0,92727.0,0.010788]
[1767719130310,0.09172,92736.0,92729.0,0.010787]
[1767719130706,0.09172,92737.0,92732.0,0.010787]
[1767719130910,0.05083092,92750.0,92718.0,0.010789]
[1767719130911,0.04004592,92750.0,92735.0,0.010787]
[1767719131114,0.102505,92749.0,92732.0,0.010787]
[1767719131327,0.010785,92747.0,92732.0,0.010787]
[1767719131614,0.10318379,92747.0,92729.0,0.010787]
[1767719132010,0.09239879,92747.0,92726.0,0.03840815]
[1767719132319,0.06071,92753.0,92726.0,0.03840815]
[1767719132320,0.09172,92746.0,92727.0,0.03819692]
[1767719132713,0.09172,92746.0,92730.0,0.010787]
[1767719132714,0.102505,92746.0,92730.0,0.010787]
[1767719132916,0.09172,92746.0,92727.0,0.010788]
[1767719133220,0.09172,92746.0,92715.0,0.00012266]
[1767719133221,0.09239879,92737.0,92715.0,0.00012266]
[1767719133711,0.02171454,92736.0,92715.0,0.03831958]
[1767719134021,0.09239879,92737.0,92715.0,0.03831958]
[1767719134022,0.02171454,92735.0,92726.0,0.010788]
[1767719134321,0.02171454,92734.0,92726.0,0.010788]
[1767719134510,0.09239879,92737.0,92726.0,0.010788]
[1767719134711,0.02171256,92736.0,92726.0,0.010788]
[1767719134915,0.02171256,92735.0,92726.0,0.010788]
[1767719135111,0.02171256,92734.0,92726.0,0.010788]
[1767719135312,0.04773004,92743.0,92718.0,0.03819692]
[1767719135313,5.6e-07,92733.0,92730.0,0.010787]
[1767719135508,0.09172,92747.0,92725.0,0.03819692]
[1767719135707,0.09172,92747.0,92727.0,0.03819692]
[1767719135912,0.09239879,92750.0,92728.0,0.010787]
[1767719136117,0.19490379,92746.0,92724.0,0.09022434]
[1767719136310,0.19490379,92746.0,92728.0,0.010787]
[1767719136713,0.18411879,92746.0,92731.0,0.010787]
[1767719136912,0.010785,92749.0,92731.0,0.010787]
[1767719137715,0.10318379,92752.0,92731.0,0.010787]
[1767719138023,0.10318379,92750.0,92731.0,0.010787]
[1767719138517,0.10318379,92750.0,92727.0,0.03819692]
[1767719138725,0.10318379,92750.0,92731.0,0.010787]
[1767719138922,0.09239879,92749.0,92731.0,0.010787]
[1767719139323,0.09239879,92749.0,92727.0,0.03819692]
[1767719139516,0.06071,92753.0,92746.0,0.010785]
[1767719139720,0.09172,92759.0,92739.0,0.03819692]
[1767719139916,0.03694404,92768.0,92738.0,0.10101034]
[1767719139917,0.03694404,92768.0,92754.0,0.010784]
[1767719140112,0.03694404,92768.0,92742.0,0.03819692]
[1767719140113,0.09172,92767.0,92759.0,0.010784]
[1767719140318,0.09239879,92770.0,92758.0,0.010784]
[1767719140519,0.09239879,92770.0,92747.0,0.03819692]
[1767719140711,0.09239879,92768.0,92746.0,0.010785]
[1767719140917,0.09239879,92758.0,92738.0,0.09172]
[1767719141224,0.09239879,92758.0,92746.0,0.010785]
[1767719141815,0.03694404,92768.0,92739.0,0.09172]
[1767719141816,0.09239879,92756.0,92739.0,0.09172]
[1767719142025,0.09239879,92750.0,92732.0,0.09172]
[1767719142223,0.09239879,92750.0,92734.0,0.010787]
[1767719142921,0.09239879,92748.0,92731.0,0.102507]
[1767719143121,0.09239879,92747.0,92731.0,0.102507]
[1767719143322,0.09239879,92747.0,92735.0,0.010787]
[1767719143713,0.09239879,92747.0,92737.0,0.010786]
[1767719143917,0.09239879,92747.0,92734.0,0.010787]
[1767719145331,0.09239879,92747.0,92731.0,0.102507]
[1767719145628,0.09239879,92747.0,92733.0,0.010787]
[1767719145830,0.09239879,92747.0,92735.0,0.010787]
[1767719146031,0.09239879,92747.0,92731.0,0.09172]
[1767719146335,0.09172,92753.0,92731.0,0.09172]
[1767719146531,0.03694404,92752.0,92731.0,0.09172]
[1767719146830,0.09239879,92751.0,92731.0,0.09172]
[1767719147022,0.09239879,92749.0,92731.0,0.09172]
[1767719147224,0.12934283,92738.0,92724.0,0.09172]
[1767719147427,0.11406889,92737.0,92721.0,0.09172]
[1767719147624,0.0216701,92736.0,92724.0,0.010788]
[1767719147832,0.0216701,92736.0,92727.0,0.010788]
[1767719148329,0.0216701,92736.0,92729.0,0.010787]
[1767719148523,0.0216701,92736.0,92731.0,0.010787]
[1767719148722,0.0216701,92736.0,92721.0,0.09172]
[1767719148931,0.0216701,92736.0,92727.0,0.010788]
[1767719149124,0.0216701,92735.0,92727.0,0.010788]
[1767719149320,0.0216701,92735.0,92721.0,0.09172]
[1767719149321,1e-07,92734.0,92721.0,0.09172]
[1767719149525,0.12934283,92743.0,92721.0,0.09172]
[1767719149725,0.12934283,92743.0,92731.0,0.010787]
[1767719149929,0.09239879,92743.0,92732.0,0.010787]
[1767719150234,0.09239879,92743.0,92721.0,0.09172]
[1767719150436,0.09239879,92743.0,92733.0,0.010787]
[1767719150741,0.04772804,92756.0,92731.0,0.12991692]
[1767719150935,0.04772804,92756.0,92741.0,0.010786]
[1767719151439,0.04772804,92756.0,92738.0,0.010786]
[1767719151623,0.04772804,92756.0,92740.0,0.010786]
[1767719152230,0.03694404,92756.0,92740.0,0.010786]
[1767719152631,0.12934283,92741.0,92732.0,0.09172]
[1767719152939,0.09239879,92740.0,92732.0,0.05183301]
[1767719153634,0.09239879,92754.0,92732.0,0.05183301]
[1767719153846,0.09239879,92749.0,92732.0,0.04383301]
[1767719154030,0.09239879,92745.0,92732.0,0.04383301]
[1767719154232,0.09239879,92744.0,92732.0,0.04383301]
[1767719156332,0.09239879,92744.0,92732.0,0.05462001]
[1767719156532,0.09239879,92744.0,92732.0,0.04383301]
[1767719157245,0.09551389,92743.0,92732.0,0.04383301]
[1767719158041,0.09551389,92739.0,92727.0,0.09172]
[1767719158242,0.09551389,92737.0,92727.0,0.09172]
[1767719158632,0.03917129,92743.0,92727.0,0.09172]
[1767719158833,0.13468518,92743.0,92726.0,0.010788]
[1767719159037,0.13468518,92743.0,92725.0,0.010788]
[1767719160147,0.09551389,92742.0,92725.0,0.010788]
[1767719160348,0.09551389,92742.0,92720.0,0.09172]
[1767719161245,0.09841107,92735.0,92721.0,0.010788]
[1767719161444,0.09841107,92735.0,92720.0,0.09172]
[1767719161445,0.02166514,92734.0,92723.0,0.010788]
[1767719161748,0.02166514,92733.0,92720.0,0.09172]
[1767719161941,0.02166514,92732.0,92720.0,0.09172]
[1767719162141,0.02166514,92731.0,92722.0,0.010788]
[1767719162336,0.02166514,92730.0,92720.0,0.09172]
[1767719162647,0.09841107,92735.0,92720.0,0.09172]
[1767719162847,0.09841107,92735.0,92727.0,0.010788]
[1767719163545,0.09841107,92735.0,92724.0,0.010788]
[1767719163939,0.09841107,92735.0,92726.0,0.010788]
[1767719164843,0.09841107,92735.0,92720.0,0.09172]
[1767719165148,0.09172,92746.0,92733.0,0.010787]
[1767719165450,0.09172,92746.0,92723.0,0.03783188]
[1767719165451,0.14850391,92745.0,92730.0,0.010787]
[1767719165651,0.09841107,92744.0,92730.0,0.010787]
[1767719165844,0.09841107,92744.0,92732.0,0.010787]
[1767719166551,0.09841107,92744.0,92723.0,0.03783188]
[1767719166948,0.13771791,92743.0,92720.0,0.31182835]
[1767719167151,0.09841107,92742.0,92729.0,0.010787]
[1767719167445,0.09841107,92734.0,92720.0,0.09172]
[1767719167948,0.09841107,92734.0,92724.0,0.010788]
[1767719168148,0.09841107,92734.0,92720.0,0.09172]
[1767719168348,0.13771791,92741.0,92720.0,0.09172]
[1767719168859,0.13771791,92741.0,92731.0,0.010787]
[1767719169255,0.13771791,92741.0,92731.0,0.005787]
[1767719169950,0.09172,92749.0,92721.0,0.010788]
[1767719169951,0.010785,92747.0,92724.0,0.13092894]
[1767719170145,0.09841107,92748.0,92725.0,0.09309706]
[1767719170351,0.09841107,92748.0,92721.0,0.010788]
[1767719170352,0.0949954,92761.0,92750.0,0.010785]
[1767719170556,0.010784,92759.0,92745.0,0.09309706]
[1767719170846,0.03930684,92755.0,92743.0,0.09172]
[1767719171238,0.010785,92754.0,92743.0,0.09172]
[1767719171438,0.010785,92753.0,92731.0,0.010787]
[1767719171641,0.03930684,92752.0,92735.0,0.010787]
[1767719172751,0.03930684,92752.0,92732.0,0.102507]
[1767719172950,0.03930684,92749.0,92732.0,0.09172]
[1767719173153,0.13771791,92743.0,92727.0,0.010788]
[1767719173450,0.410784,92761.0,92718.0,0.31044]
[1767719173451,0.09841107,92739.0,92729.0,0.010787]
[1767719173654,0.09841107,92739.0,92730.0,0.010787]
[1767719173852,0.09841107,92739.0,92725.0,0.102508]
[1767719174155,0.09841107,92739.0,92727.0,0.010788]
[1767719174353,0.03930684,92745.0,92732.0,0.010787]
[1767719174546,0.09551,92751.0,92734.0,0.010787]
[1767719175056,0.00379,92751.0,92734.0,0.13092894]
[1767719175253,0.00379,92751.0,92737.0,0.010786]
[1767719175447,0.00379,92751.0,92743.0,0.010786]
[1767719175647,0.00379,92751.0,92737.0,0.010786]
[1767719175848,0.10220107,92751.0,92731.0,0.010787]
[1767719176049,0.10220107,92751.0,92727.0,0.09309706]
[1767719176050,0.14150791,92751.0,92733.0,0.010787]
[1767719176248,0.14150791,92751.0,92727.0,0.13092894]
[1767719176846,0.14150791,92751.0,92725.0,0.09172]
[1767719176847,0.13771791,92761.0,92745.0,0.010785]
[1767719177051,0.09172,92762.0,92739.0,0.03461688]
[1767719177253,0.09172,92762.0,92742.0,0.010786]
[1767719177558,0.09172,92763.0,92745.0,0.010785]
[1767719178259,0.09172,92763.0,92741.0,0.010786]
[1767719178449,0.09172,92763.0,92743.0,0.010786]
[1767719178760,0.09172,92763.0,92737.0,0.09309706]
[1767719179059,0.02387143,92762.0,92737.0,0.09309706]
[1767719179254,0.02387143,92762.0,92746.0,0.010785]
[1767719179454,0.01333851,92777.0,92748.0,0.09309706]
[1767719179455,0.09172,92770.0,92748.0,0.09309706]
[1767719179656,0.102503,92770.0,92750.0,0.09309706]
[1767719179856,0.010783,92768.0,92750.0,0.09309706]
[1767719180049,0.010783,92766.0,92747.0,0.09172]
[1767719180249,0.02333986,92764.0,92747.0,0.09172]
[1767719180448,0.010783,92769.0,92745.0,0.09172]
[1767719180449,0.02293919,92762.0,92745.0,0.09172]
[1767719180851,0.02293919,92762.0,92747.0,0.010785]
[1767719181056,0.02293919,92762.0,92745.0,0.09172]
[1767719182159,0.12457447,92759.0,92745.0,0.09172]
[1767719182457,0.12457447,92759.0,92745.0,0.102505]
[1767719182659,0.02575333,92764.0,92745.0,0.102505]
[1767719183760,0.02575333,92764.0,92747.0,0.010785]
[1767719184254,0.02575333,92764.0,92745.0,0.09172]
[1767719184866,0.1241644,92764.0,92745.0,0.07372]
[1767719185052,0.03650255,92763.0,92745.0,0.07372]
[1767719185250,0.02571955,92762.0,92745.0,0.07372]
[1767719185651,0.02571955,92762.0,92745.0,0.084505]
[1767719187062,0.010784,92758.0,92745.0,0.07372]
[1767719188256,0.010784,92756.0,92737.0,0.010786]
[1767719188459,0.010784,92756.0,92740.0,0.10159409]
[1767719188759,0.02463399,92757.0,92740.0,0.10159409]
[1767719188760,0.02463399,92757.0,92741.0,0.010786]
[1767719188960,0.10919507,92762.0,92747.0,0.10159409]
[1767719188961,0.010784,92762.0,92747.0,0.10159409]
[1767719189163,0.02463399,92766.0,92750.0,0.10159409]
[1767719189662,0.19013107,92775.0,92756.0,0.10159409]
[1767719189855,0.20091307,92775.0,92760.0,0.10159409]
[1767719190054,0.19013107,92775.0,92760.0,0.10159409]
[1767719190356,0.20091307,92775.0,92760.0,0.10159409]
[1767719190559,0.20091307,92775.0,92754.0,0.010784]
[1767719190756,0.19013107,92775.0,92760.0,0.10159409]
[1767719190960,0.19013107,92775.0,92761.0,0.010784]
[1767719191355,0.19013107,92775.0,92760.0,0.10159409]
[1767719191356,0.0949954,92787.0,92776.0,0.010782]
[1767719191661,0.09172,92804.0,92781.0,0.09304896]
[1767719191860,0.01277814,92808.0,92794.0,0.11237409]
[1767719192063,0.19076906,92811.0,92799.0,0.10159409]
[1767719192272,0.19076906,92811.0,92800.0,0.10159409]
[1767719192563,0.19076906,92811.0,92787.0,0.09304896]
[1767719192564,0.19076906,92811.0,92790.0,0.10159409]
[1767719193769,0.19076906,92811.0,92792.0,0.01078]
[1767719193953,0.19076906,92811.0,92800.0,0.10159409]
[1767719194156,0.19076906,92811.0,92790.0,0.10159409]
[1767719194360,0.09904906,92818.0,92800.0,0.10159409]